Cogmind - Beta 9.1 @@@ ROGUE MODE // 2019.11.09 @ 21:31:21 Player: sideriver81 Result: Destroyed by S-43 Plague with Heavy Machine Gun Performance ------------- Evolutions (9) 4500 Regions Visited (11) 2200 Robots Destroyed (336) 1680 Value Destroyed (15281) 15281 Prototype IDs (12) 240 Alien Tech Used (0) 0 Bonus (5282) 5282 TOTAL SCORE: 29183 Bonus ------- High Alert Combat Kills 4861 Follower Combat Kills 760 Friendly Fire -339 Cogmind --------- Core Integrity 0/1600 Matter 257/300 Energy 100/100 System Corruption 7% Temperature Cool (0) Location -1/Access Parts ------- Power (2) Propulsion (4) Utility (12) Advanced Visual Processing Unit Advanced Signal Interpreter Advanced Targeting Computer Advanced Target Analyzer Weapon (7) Inventory (4) Peak State ------------ Power Quantum Reactor Light Quantum Reactor Propulsion Improved Heavy Treads Biometal Heavy Treads Utility Advanced Heat Sink Medium Storage Unit Medium Storage Unit Advanced Signal Interpreter Advanced Targeting Computer Advanced Targeting Computer Advanced Target Analyzer Advanced Core Analyzer Recoil Nullifier Hacking Suite Hacking Suite Advanced System Shield Weapon Gamma Rifle Enhanced Quantum Rifle Enhanced Nova Cannon Heavy Machine Gun Heavy Machine Gun Heavy Machine Gun KE Penetrator Inventory Particle Reactor Light Quantum Reactor Improved Heavy Treads Advanced Heavy Siege Treads Advanced Heat Sink Advanced Heat Sink Medium Matter Pod Enhanced Nova Cannon Enhanced Nova Cannon Hypervelocity Mass Driver [Rating: 155] Favorites ----------- Power Light Antimatter Reactor Engine Heavy Ion Engine Power Core Micro Fission Core Reactor Light Antimatter Reactor Propulsion Myomer Leg Treads Improved Heavy Treads Leg Myomer Leg Wheel Compact Wheel Hover Unit Antigrav System Utility Hacking Suite Device Advanced Heat Sink Storage Medium Storage Unit Processor Enhanced Optical Array Hackware Hacking Suite Protection Hardened Heavy Armor Plating Weapon Coil Gun Energy Gun Advanced Beam Rifle Energy Cannon Enhanced Nova Cannon Ballistic Gun Coil Gun Ballistic Cannon Hypervelocity Mass Driver Launcher Mini Grenade Launcher Special Weapon Improved Plasma Cutter Impact Weapon Heavy Mace Slashing Weapon Power Sword Build | -11 -10 -9 -8 -7 -6 -5 -4 -4 -3 -2 -1 ------- Run | Scr Mat Mat Mat Fac Fac Fac Fac Ext Res Res Acc Slots Evolved 18 | . . 2 2 2 2 2 2 . 2 2 2 Power 1 | . . . . . . . 1 . . . . Propulsion 2 | . . 1 . 1 . . . . . . . Utility 10 | . . . 1 1 2 2 . . 2 2 . Weapon 5 | . . 1 1 . . . 1 . . . 2 Parts Attached 462 | 6 11 7 27 52 27 31 67 58 75 43 58 Power 50 | 1 1 1 2 6 2 3 6 7 11 4 6 Engine 9 | 1 1 1 2 1 2 1 . . . . . Core 13 | . . . . 5 . 2 4 1 . 1 . Reactor 28 | . . . . . . . 2 6 11 3 6 Propulsion 87 | 2 2 1 6 12 4 6 23 15 7 4 5 Treads 21 | . . . . . . . 4 2 7 4 4 Leg 44 | . . 1 3 12 4 1 10 13 . . . Wheel 9 | 2 2 . 3 . . . 2 . . . . Hover 13 | . . . . . . 5 7 . . . 1 Flight . | . . . . . . . . . . . . Utility 161 | 1 4 . 9 18 8 9 22 17 31 23 19 Device 86 | . 2 . 5 4 5 5 17 6 15 13 14 Storage 23 | 1 2 . 2 2 1 . 1 5 5 1 3 Processor 27 | . . . 2 4 1 2 3 3 5 5 2 Hackware 5 | . . . . 1 . 1 . . 1 2 . Protection 20 | . . . . 7 1 1 1 3 5 2 . Artifact . | . . . . . . . . . . . . Weapon 164 | 2 4 5 10 16 13 13 16 19 26 12 28 Energy Gun 43 | 2 4 2 4 12 1 . 3 4 5 1 5 Energy Cannon 6 | . . . . . 2 . 2 . . . 2 Ballistic Gun 73 | . . 3 1 1 . . 9 10 21 9 19 Ballistic Cannon 3 | . . . . . . . . 1 . 2 . Launcher 16 | . . . 2 2 5 4 . 1 . . 2 Special Weapon 2 | . . . 1 . . . 1 . . . . Impact Weapon 4 | . . . . . . 3 . 1 . . . Slashing Weapon 17 | . . . 2 1 5 6 1 2 . . . Piercing Weapon . | . . . . . . . . . . . . Special Melee Weapon . | . . . . . . . . . . . . Unidentified Prototypes 13 | . . . 3 2 . . 1 . 3 3 1 Parts Lost 154 | . 2 1 1 4 2 17 18 32 26 11 40 Power 15 | . . . . 1 . 2 1 4 3 . 4 Propulsion 30 | . . . 1 . 1 5 8 9 . 1 5 Utility 42 | . . . . 1 1 6 1 8 7 6 12 Weapon 67 | . 2 1 . 2 . 4 8 11 16 4 19 Highest Loss Streak 22 | . 1 1 1 3 1 16 10 16 8 6 22 Average Slot Usage (%) 90 | . 97 85 90 96 99 78 94 85 85 92 85 Engine 1 | . 14 11 9 3 4 1 . . . . . Core 2 | . . . . 3 1 2 7 2 . 1 . Reactor 4 | . . . . . . . 2 6 8 6 7 Treads 4 | . . . . . . . 1 4 9 11 7 Leg 10 | . . 2 9 29 26 3 10 10 . . . Wheel 1 | . 28 22 9 . . . . . . . . Device 7 | . 11 11 14 3 4 5 9 4 8 10 8 Storage 7 | . 14 11 9 7 6 9 9 6 6 8 7 Processor 14 | . . . 3 7 12 18 15 18 18 15 20 Hackware 5 | . . . . 4 6 2 5 5 4 10 9 Protection 2 | . . . . 5 6 1 . 2 3 4 . Energy Gun 5 | . 28 19 16 15 1 . 2 1 . 1 2 Ballistic Gun 12 | . . 7 10 1 . . 10 18 20 19 21 Launcher 1 | . . . 1 2 10 . . . . . . Slashing Weapon 4 | . . . 6 8 11 15 6 2 . . . Naked Turns . | . . . . . . . . . . . . Heaviest Build 109 | 12 17 18 24 51 63 50 69 103 104 109 98 Greatest Support 155 | 26 32 26 49 73 75 68 121 140 150 150 155 Greatest Overweight (x) 12 | . . . 1 . 1 12 3 2 . 1 . Average Overweight (x) . | . . . . . . . . . . . . Largest Inventory Capacity 18 | 6 6 6 6 8 12 12 14 18 12 12 12 Average Capacity 10 | 5 6 6 6 6 8 10 13 13 11 12 11 Most Carried 18 | 6 6 6 6 8 11 12 14 18 12 12 12 Average Carried 9 | 4 5 5 5 6 7 6 13 11 10 11 10 Final Capacity 14 | 6 6 6 6 8 12 8 14 12 12 12 4 Final Carried 14 | 6 5 6 6 8 11 7 14 12 12 12 . Class Distribution -------------------- 44% | Scavenger-Gunner 20% | Scavenger-Mutant 15% | Mutant 9% | Scavenger-Executioner 4% | Gunner 3% | Skirmisher 3% | Tank Dominant Class ---------------- Mutant | -10/Materials Mutant | -9/Materials Gunner | -8/Materials Mutant | -7/Factory Mutant | -6/Factory Scavenger-Mutant | -5/Factory Scavenger-Mutant | -4/Factory Scavenger-Gunner | -4/Extension Scavenger-Gunner | -3/Research Scavenger-Gunner | -2/Research Scavenger-Executioner | -1/Access Resources | -11 -10 -9 -8 -7 -6 -5 -4 -4 -3 -2 -1 ----------- Run | Scr Mat Mat Mat Fac Fac Fac Fac Ext Res Res Acc Matter Collected 11534 | 235 185 25 368 453 914 296 1207 1124 2868 1523 2336 Remotely 490 | . . . 308 . 97 85 . . . . . Salvage Created 18039 | . 429 164 417 1057 1390 352 2466 1451 4073 1928 4312 Parts 863 | . 20 6 40 63 49 22 100 52 215 70 226 Haulers Intercepted 2 | . . 1 . 1 . . . . . . . Recyclers Shooed 8 | . . 1 . 1 1 . . . 4 1 . Parts Field Recycled . | . . . . . . . . . . . . Retrieved Matter . | . . . . . . . . . . . . Parts Self-Destructed . | . . . . . . . . . . . . Prevented . | . . . . . . . . . . . . Kills | -11 -10 -9 -8 -7 -6 -5 -4 -4 -3 -2 -1 ------- Run | Scr Mat Mat Mat Fac Fac Fac Fac Ext Res Res Acc Combat Hostiles Destroyed 238 | . 10 3 16 20 18 7 26 11 58 20 49 Melee 31 | . . . . 6 2 6 11 4 . . 2 Guns 175 | . 8 3 7 14 . . 13 6 58 20 46 Cannons 4 | . . . . . 3 . 1 . . . . AOE 26 | . 2 . 9 . 13 1 . 1 . . . Classes Destroyed 18 | . 3 1 3 4 1 1 . 1 2 1 1 Worker 34 | . . . . 1 5 . 3 . 15 2 8 Builder 17 | . . . . 1 . . 1 2 2 1 10 Tunneler 3 | . . . . . . . . . . 2 1 Hauler 2 | . . 1 . 1 . . . . . . . Recycler 24 | . 2 1 . 1 6 . 3 4 3 2 2 Mechanic 1 | . . . . . . . . . 1 . . Operator 5 | . . . 2 . . 1 1 . 1 . . Watcher 11 | . . . 3 1 . . 1 1 1 . 4 Swarmer 56 | . 6 3 9 7 4 . . . 23 . 4 Saboteur 2 | . . . . . . . . . . . 2 Grunt 71 | . 4 . 5 6 6 2 10 2 13 6 17 Brawler 2 | . . . . . . 1 . . . . 1 Duelist 6 | . . . . . 3 . . . . 1 2 Protector 1 | . . . . . . . . . 1 . . Sentry 26 | . . . 2 2 3 . 7 2 7 3 . Hunter 36 | . . . . 2 1 1 4 3 4 8 13 Programmer 35 | . . . . 3 1 3 5 1 10 2 10 Behemoth 2 | . . . . . . . . 2 . . . Thug 1 | . . . . . . . . 1 . . . Butcher 1 | . . . . . . . . 1 . . . Best Kill Streak 14 | . 3 4 13 5 7 2 6 5 14 7 11 Combat Bots Only 11 | . 3 2 11 4 4 2 4 4 5 6 8 Max Kills in Single Turn 6 | . 2 1 6 2 4 1 2 1 3 2 2 Gunslinging 1 | . . . . 1 . . . . 1 1 1 Exploded 4 | . 1 . 4 . 4 1 . 1 . . . Melee 1 | . . . . 1 1 1 1 1 . . 1 Uniques/NPCs Destroyed . | . . . . . . . . . . . . Combat | -11 -10 -9 -8 -7 -6 -5 -4 -4 -3 -2 -1 -------- Run | Scr Mat Mat Mat Fac Fac Fac Fac Ext Res Res Acc Damage Taken 33858 | . 316 117 598 1946 1016 1835 3806 4556 7006 3710 8952 Core 4118 | . 40 29 61 272 53 215 361 724 547 197 1619 Absorbed by Shields . | . . . . . . . . . . . . Core Remaining (%) 74 | 100 84 92 88 61 93 78 . 5 57 86 . Volleys Fired 553 | . 26 10 23 49 27 2 51 53 146 69 97 Largest 7 | . 2 3 4 3 4 4 5 5 5 5 7 Hottest 292 | . 90 130 154 183 194 153 214 159 200 203 292 Shots Fired 2120 | . 51 21 61 109 46 7 178 140 607 337 563 Gun 2053 | . 51 21 51 109 9 . 168 137 607 337 563 Cannon 24 | . . . . . 12 . 10 2 . . . Launcher 43 | . . . 10 . 25 7 . 1 . . . Special . | . . . . . . . . . . . . Kinetic 1702 | . . . 18 . . . 136 133 573 320 522 Thermal 206 | . . . 30 101 21 . 32 4 9 . 9 Explosive 42 | . . . 10 . 25 7 . . . . . Electromagnetic 170 | . 51 21 3 8 . . 10 3 25 17 32 Robot Hit Streak 57 | . 18 4 11 19 20 4 10 14 26 43 57 Robot Miss Streak 6 | . 6 3 6 3 2 . 3 3 4 3 3 Penetration Max 2 | . . . . . . . 1 1 2 1 1 Secondary Targets 40 | . . . 1 1 . . 1 . 20 3 14 Max Gunslinging Chain 2 | . . . 1 1 . . 1 . 2 1 2 Shots Hit Robots 1512 | . 33 16 39 101 47 27 154 107 388 236 364 Core Hits 800 | . 20 7 34 37 60 15 72 48 212 92 203 Critical Hits 151 | . . . . 1 1 . 20 17 36 28 48 Critical Kills 48 | . . . . . 1 . 9 5 9 6 18 Critical Parts Destroyed 87 | . . . . 1 . . 10 10 21 19 26 Melee Attacks 179 | . . . . 27 18 37 74 23 . . . Impact 16 | . . . . . . 8 7 1 . . . Slashing 163 | . . . . 27 18 29 67 22 . . . Piercing . | . . . . . . . . . . . . Sneak Attacks 13 | . . . . . 6 . 5 2 . . . Combat Hostiles 2 | . . . . . . . 2 . . . . Follow-up Attacks 37 | . . . . 1 3 7 21 5 . . . Damage Inflicted 40946 | . 458 223 1088 2233 3780 1316 5188 3634 9525 4836 8665 Guns 30406 | . 321 159 496 1580 180 . 2411 2555 9439 4836 8429 Cannons 523 | . . . . . 277 . 218 28 . . . Explosions 3975 | . 137 64 592 . 2237 431 . 265 77 . 172 Melee 5961 | . . . . 653 1078 885 2559 786 . . . Ramming 81 | . . . . . 8 . . . 9 . 64 Kinetic 25291 | . . . 87 . . . 1915 2472 8845 4492 7480 Thermal 3697 | . 137 64 363 1508 674 . 496 86 153 . 216 Explosive 3215 | . . . 592 . 2020 431 . . . . 172 Electromagnetic 2701 | . 321 159 46 72 . . 218 290 518 344 733 Impact 270 | . . . . . . 125 145 . . . . Slashing 5691 | . . . . 653 1078 760 2414 786 . . . Piercing . | . . . . . . . . . . . . Highest Corruption 14 | . 2 . . 2 1 14 3 8 2 8 8 Average Corruption 4 | . 2 . . 1 1 10 2 6 1 4 5 Corruption Purged 1 | . . . . . . . . . . . 1 Effects 230 | . . . . 11 4 14 17 75 27 30 52 Message Errors 54 | . . . . 3 2 3 4 17 7 7 11 Matter Fused 24 | . . . . . . 2 . 15 . 3 4 Heat Flow Errors 22 | . . . . 2 . 5 2 8 2 1 2 Energy Discharges 28 | . . . . 1 2 . 4 8 4 6 3 Parts Rejected 4 | . . . . . . . . 1 . . 3 Data Loss (minor) 24 | . . . . 4 . 1 3 9 2 1 4 Data Loss (major) 6 | . . . . . . 1 . 3 . . 2 Misdirections 2 | . . . . . . 2 . . . . . Targeting Errors 58 | . . . . 1 . . 4 13 10 12 18 Weapon Failures 8 | . . . . . . . . 1 2 . 5 Overload Shots 2 | . . . . 2 . . . . . . . Overflow Damage 662 | . 3 . . 17 194 12 180 234 22 . . Projectiles 2 | . . . . . 2 . . . . . . Explosions 125 | . 3 . . . 72 2 . 26 22 . . Melee 535 | . . . . 17 120 10 180 208 . . . Knockbacks 2 | . . . . . . 1 1 . . . . Impact 2 | . . . . . . 1 1 . . . . Kinetic . | . . . . . . . . . . . . Secondary . | . . . . . . . . . . . . Self-Inflicted Damage 470 | . . 7 33 . 231 43 . 28 52 . 76 Shots 15 | . . 1 1 . 7 3 . 1 1 . 1 Rammed 21 | . . . . . . . . . 3 . 18 Targets Rammed 22 | . . . . . 1 . . . 3 . 18 Kicked 1 | . . . . . 1 . . . . . . Crushed . | . . . . . . . . . . . . Highest Temperature 459 | . 18 . 251 397 319 261 379 459 324 321 383 Average Temperature 105 | . 12 . 86 121 116 98 106 106 105 120 93 Received Heat Transfer 3246 | . 48 9 198 384 252 225 360 213 594 117 846 Effects 19 | . . . . 3 1 . 6 2 . . 7 Shutdowns 4 | . . . . 1 . . . 2 . . 1 Energy Bleed 3 | . . . . 1 . . 1 . . . 1 Interference 8 | . . . . . . . 4 . . . 4 Short Circuit 3 | . . . . 1 1 . . . . . 1 Damage (minor) 1 | . . . . . . . 1 . . . . Siege Activations . | . . . . . . . . . . . . Robots Corrupted 2 | . . . . . . . 1 . . . 1 Combat Hostiles 2 | . . . . . . . 1 . . . 1 Parts Fried 10 | . . 1 . . . . 3 . 3 2 1 Impact Corruptions 1 | . . . . . . 1 . . . . . Robots Melted . | . . . . . . . . . . . . Combat Hostiles . | . . . . . . . . . . . . Parts Melted 11 | . 1 . 1 6 3 . . . . . . Heat Transferred 6068 | . 150 100 740 2764 883 . 729 111 350 . 241 Parts Sabotaged 1 | . . . . . . . . . . . 1 Parts Stolen . | . . . . . . . . . . . . Parts Stripped . | . . . . . . . . . . . . Power Chain Reactions 6 | . 2 2 . . . . . 1 1 . . Missiles Intercepted . | . . . . . . . . . . . . Alert | -11 -10 -9 -8 -7 -6 -5 -4 -4 -3 -2 -1 ------- Run | Scr Mat Mat Mat Fac Fac Fac Fac Ext Res Res Acc Peak Influence 1510 | . 349 197 607 396 799 379 394 203 1510 992 1243 Average Influence 425 | . 157 132 370 208 524 316 143 66 818 857 858 Maximum Alert Level 4 | . 1 . 2 1 3 1 1 1 4 3 4 Low Security (%) 38 | . . . . . . . . . . . . Level 1 21 | . . . . . . . . . . . . Level 2 15 | . . . . . . . . . . . . Level 3 14 | . . . . . . . . . . . . Level 4 9 | . . . . . . . . . . . . Level 5 . | . . . . . . . . . . . . High Security . | . . . . . . . . . . . . Max Security . | . . . . . . . . . . . . Squads Dispatched 49 | . 3 . 2 7 2 2 4 . 16 2 11 Investigation 6 | . 2 . 1 2 1 . . . . . . Extermination 17 | . . . . 3 1 1 3 . 5 2 2 Reinforcement 13 | . 1 . 1 2 . 1 1 . 2 . 5 Assault 6 | . . . . . . . . . 3 . 3 Garrison 7 | . . . . . . . . . 6 . 1 Intercept . | . . . . . . . . . . . . Construction Impeded 3 | . . . . . . . . . . . 3 Haulers Reinforced 2 | . . . . 1 . . . . . . 1 Stealth | -11 -10 -9 -8 -7 -6 -5 -4 -4 -3 -2 -1 --------- Run | Scr Mat Mat Mat Fac Fac Fac Fac Ext Res Res Acc Distress Signals 19 | . 1 1 3 2 1 . 1 2 5 3 . Communications Jammed 87 | . . . 44 . . . 10 33 . . . Distress Signals 87 | . . . 44 . . . 10 33 . . . Times Spotted 383 | . 18 7 32 31 20 8 35 31 89 28 84 Peak Tracking Total 16 | . 4 4 14 4 5 3 6 8 11 8 16 Tactical Retreats 24 | . 2 1 3 3 . . 2 2 5 1 5 Traps | -11 -10 -9 -8 -7 -6 -5 -4 -4 -3 -2 -1 ------- Run | Scr Mat Mat Mat Fac Fac Fac Fac Ext Res Res Acc Traps Triggered 11 | . 1 . . 2 1 . 2 2 1 1 1 Indirectly . | . . . . . . . . . . . . Trap Hack Attempts . | . . . . . . . . . . . . Triggered . | . . . . . . . . . . . . Disarmed . | . . . . . . . . . . . . Reprogrammed . | . . . . . . . . . . . . Reused . | . . . . . . . . . . . . Traps Extracted . | . . . . . . . . . . . . Installed . | . . . . . . . . . . . . Triggered 1 | . . . . . . . . 1 . . . Machines | -11 -10 -9 -8 -7 -6 -5 -4 -4 -3 -2 -1 ---------- Run | Scr Mat Mat Mat Fac Fac Fac Fac Ext Res Res Acc Machines Disabled 29 | . . 1 4 2 13 . 2 3 3 . 1 Max in Single Turn 3 | . . 1 1 1 3 . 1 1 1 . 1 Garrison Access 6 | . . . . 2 2 . . . 1 . 1 Machines Sabotaged . | . . . . . . . . . . . . Garrisons Compromised . | . . . . . . . . . . . . Overloaded Fab Kills . | . . . . . . . . . . . . Fab Network Shutdowns 1 | . . . . . . . . . 1 . . Hacking | -11 -10 -9 -8 -7 -6 -5 -4 -4 -3 -2 -1 --------- Run | Scr Mat Mat Mat Fac Fac Fac Fac Ext Res Res Acc Machines Accessed 62 | . 5 1 6 18 4 . 5 12 7 2 2 Terminals 40 | . 3 1 5 9 2 . 2 12 4 1 1 Fabricators 6 | . . . . 3 . . 1 . 1 1 . Repair Stations 1 | . . . . . . . . . 1 . . Recycling Units 6 | . 2 . 1 2 . . 1 . . . . Scanalyzers 3 | . . . . 2 . . 1 . . . . Garrison Access 6 | . . . . 2 2 . . . 1 . 1 Total Hacks 166 | . 15 4 19 38 13 . 20 38 11 6 2 Successful 95 | . 9 2 9 20 5 . 13 23 7 6 1 Failed 71 | . 6 2 10 18 8 . 7 15 4 . 1 Catastrophic 7 | . 1 . 2 1 . . 1 1 . . 1 Database Lockouts . | . . . . . . . . . . . . Manual 88 | . 13 1 16 21 5 . 6 22 2 2 . Terminals 119 | . 12 4 16 24 9 . 7 38 6 2 1 Fabricators 13 | . . . . 3 . . 4 . 2 4 . Repair Stations 2 | . . . . . . . . . 2 . . Recycling Units 14 | . 3 . 3 6 . . 2 . . . . Scanalyzers 10 | . . . . 3 . . 7 . . . . Garrison Access 8 | . . . . 2 4 . . . 1 . 1 Terminal Hacks 36 | . 4 1 1 6 1 . 3 15 3 2 . Record 3 | . . . . . 1 . . 1 1 . . Robot Analysis 3 | . . 1 . 1 . . . 1 . . . Open Door 7 | . . . . . . . . 7 . . . Level Access Points 1 | . . . . . . . . . 1 . . Branch Access Points 2 | . 1 . . . . . 1 . . . . Emergency Access Points 1 | . . . . . . . 1 . . . . Terminal Index 2 | . 1 . . . . . . . . 1 . Unreport Threat 6 | . . . . 1 . . 1 2 1 1 . Locate Traps 10 | . 1 . 1 4 . . . 4 . . . Hauler Manifests 1 | . 1 . . . . . . . . . . Fabricator Hacks 7 | . . . . 1 . . 2 . 2 2 . Network Status 1 | . . . . 1 . . . . . . . Load Schematic 3 | . . . . . . . 1 . 1 1 . Build 3 | . . . . . . . 1 . 1 1 . Repair Station Hacks 1 | . . . . . . . . . 1 . . Scan Component 1 | . . . . . . . . . 1 . . Recycling Unit Hacks 6 | . 1 . 2 2 . . 1 . . . . Process 1 | . . . 1 . . . . . . . . Report Inventory 3 | . 1 . . 1 . . 1 . . . . Retrieve Matter 1 | . . . 1 . . . . . . . . Retrieve Components 1 | . . . . 1 . . . . . . . Scanalyzer 8 | . . . . 2 . . 6 . . . . Insert Component 3 | . . . . 1 . . 2 . . . . Analyze 5 | . . . . 1 . . 4 . . . . Garrison Access Hacks 6 | . . . . 2 2 . . . 1 . 1 Seal Access 6 | . . . . 2 2 . . . 1 . 1 Unauthorized Hacks 81 | . 12 2 14 21 7 . 2 18 1 4 . Terminals 25 | . 2 1 5 6 2 . 1 8 . . . Botnet 25 | . 2 1 5 6 2 . 1 8 . . . Fabricators 2 | . . . . . . . . . . 2 . Report 1 | . . . . . . . . . . 1 . Siphon 1 | . . . . . . . . . . 1 . Repair Stations . | . . . . . . . . . . . . Recycling Units 4 | . 2 . 1 1 . . . . . . . Tunnel 4 | . 2 . 1 1 . . . . . . . Scanalyzers . | . . . . . . . . . . . . Garrison Access . | . . . . . . . . . . . . Data Cores Recovered 2 | . . . 1 . . . . . 1 . . Used 1 | . . . 1 . . . . . . . . Hacking Detections 49 | . 3 1 5 14 3 . 4 11 6 1 1 Full Trace Events 1 | . . . . . 1 . . . . . . Feedback Events 1 | . . . . . 1 . . . . . . Corruption 1 | . . . . . 1 . . . . . . Feedback Blocked . | . . . . . . . . . . . . Robot Schematics Acquired . | . . . . . . . . . . . . Robots Built . | . . . . . . . . . . . . Matter . | . . . . . . . . . . . . Time . | . . . . . . . . . . . . Total Robot Build Rating . | . . . . . . . . . . . . Part Schematics Acquired 3 | . . . . 1 . . 2 . . . . Parts Built 6 | . . . . . . . 2 . 2 2 . Matter 555 | . . . . . . . 146 . 234 175 . Time 189 | . . . . . . . 73 . 58 58 . Total Part Build Rating 34 | . . . . . . . 6 . 14 14 . Parts Repaired . | . . . . . . . . . . . . Time . | . . . . . . . . . . . . Parts Recycled . | . . . . . . . . . . . . Recycled Matter 59 | . . . 59 . . . . . . . . Retrieved Matter 59 | . . . 59 . . . . . . . . Retrieved Components 5 | . . . . 5 . . . . . . . Parts Scanalyzed 3 | . . . . 1 . . 2 . . . . Part Schematics Acquired 3 | . . . . 1 . . 2 . . . . Parts Damaged 2 | . . . . 1 . . 1 . . . . Bothacking | -11 -10 -9 -8 -7 -6 -5 -4 -4 -3 -2 -1 ------------ Run | Scr Mat Mat Mat Fac Fac Fac Fac Ext Res Res Acc Used RIF Installer . | . . . . . . . . . . . . Robots Hacked . | . . . . . . . . . . . . Non-combat . | . . . . . . . . . . . . Combat . | . . . . . . . . . . . . Robot Hacks Applied . | . . . . . . . . . . . . Relay Couplers Released . | . . . . . . . . . . . . Robots Rewired 14 | . . . . . . . . 14 . . . Allies Hacked . | . . . . . . . . . . . . Hacks Repelled . | . . . . . . . . . . . . Allies | -11 -10 -9 -8 -7 -6 -5 -4 -4 -3 -2 -1 -------- Run | Scr Mat Mat Mat Fac Fac Fac Fac Ext Res Res Acc Total Allies 24 | . . . . . . . . 24 . . . Largest Group 14 | . . . . . . . . 14 8 . . Highest-Rated Group 589 | . . . . . . . . 589 339 . . Highest-Rated Ally 156 | . . . . . . . . 156 49 . . Total Orders . | . . . . . . . . . . . . Ally Attacks 138 | . . . . . . . . 60 78 . . Total Damage 3014 | . . . . . . . . 1792 1222 . . Kills 24 | . . . . . . . . 13 11 . . Allies Corrupted . | . . . . . . . . . . . . Allies Melted . | . . . . . . . . . . . . Intel | -11 -10 -9 -8 -7 -6 -5 -4 -4 -3 -2 -1 ------- Run | Scr Mat Mat Mat Fac Fac Fac Fac Ext Res Res Acc Robot Analysis Total 3 | . . 1 . 1 . . . 1 . . . Derelict Logs Recovered . | . . . . . . . . . . . . Drone Launches . | . . . . . . . . . . . . Drone Recoveries . | . . . . . . . . . . . . Exploration | -11 -10 -9 -8 -7 -6 -5 -4 -4 -3 -2 -1 ------------- Run | Scr Mat Mat Mat Fac Fac Fac Fac Ext Res Res Acc Turns Passed 13786 | 63 411 208 617 2344 878 398 1631 2369 2344 1102 1421 Spaces Moved 7714 | 55 307 173 412 1490 508 251 1026 1355 1041 453 643 Core 119 | 18 . . . . . 7 . . . . 94 Treads 2644 | . . . . . . . 59 542 1041 453 549 Legs 3423 | . . . 103 1490 508 33 476 813 . . . Wheels 910 | 37 307 173 309 . . . 84 . . . . Hover 618 | . . . . . . 211 407 . . . . Flight . | . . . . . . . . . . . . Fastest Speed 48 | 50 90 90 90 123 122 48 48 120 157 152 50 Average Speed 127 | 76 90 90 106 124 127 85 97 138 159 156 141 Slowest Speed 650 | 90 100 90 150 126 156 650 180 180 165 190 170 Overloaded Moves . | . . . . . . . . . . . . Propulsion Burnouts . | . . . . . . . . . . . . Robots Hopped . | . . . . . . . . . . . . Cave-ins Triggered . | . . . . . . . . . . . . Exploration Rate (%) 30 | 4 50 19 47 45 19 6 23 97 25 13 18 Regions Visited 11 Branch Regions 1 Pre-discovered Areas 4 | . 2 . 1 1 . . . . . . . Known Exits Taken 3 | . . . . . . . 1 . 1 1 . Unknown Exits Taken 8 | 1 1 1 1 1 1 1 . 1 . . . Scrap Searched . | . . . . . . . . . . . . Spaces Dug . | . . . . . . . . . . . . Terrain Destroyed 269 | . 5 3 31 . 122 48 4 10 17 9 20 Melee . | . . . . . . . . . . . . Projectile 43 | . . . . . 2 . 4 10 17 9 1 AOE 226 | . 5 3 31 . 120 48 . . . . 19 Actions | -11 -10 -9 -8 -7 -6 -5 -4 -4 -3 -2 -1 --------- Run | Scr Mat Mat Mat Fac Fac Fac Fac Ext Res Res Acc Total 10368 | 72 391 205 547 1848 672 376 1463 1726 1482 693 893 Wait 817 | 6 29 6 48 155 62 37 184 73 118 74 25 Move 7703 | 54 306 172 411 1489 507 250 1025 1354 1040 452 643 Hop . | . . . . . . . . . . . . Pick Up 247 | 6 7 5 12 23 17 16 34 37 48 20 22 Fast Attach 217 | 6 5 3 16 26 5 14 39 31 32 19 21 Attach 122 | . 3 3 4 7 7 10 13 17 22 13 23 Detach 12 | . . . . . 1 . 5 2 2 1 1 Swap 123 | . 3 1 7 19 15 7 15 10 21 11 14 Drop 317 | . 12 5 26 55 17 12 47 30 50 34 29 Fire 553 | . 26 10 23 49 27 2 51 53 146 69 97 Melee 132 | . . . . 25 13 28 50 16 . . . Ram 2 | . . . . . . . . . . . 2 Kick 1 | . . . . . 1 . . . . . . Crush 19 | . . . . . . . . . 3 . 16 Escape Stasis 10 | . . . . . . . . 10 . . . Rewire 93 | . . . . . . . . 93 . . . Trap . | . . . . . . . . . . . . Miscellaneous . | . . . . . . . . . . . . Route ------- -11/Scrapyard -10/Materials (discovered 2 exits: *Mat / *Min) -9/Materials -8/Materials -7/Factory -6/Factory -5/Factory -4/Factory (discovered 5 exits: Upp x2 / *Ext x2 / Arm) -4/Extension (discovered 2 exits: *Res / [*Cet]) -3/Research (discovered 3 exits: *Res x3) -2/Research -1/Access History --------- Turn | Location | Event 6 | -11/Scrapyard | Discovered new exit (range 16) 64 | -11/Scrapyard | Entered Materials 101 | -10/Materials | Identified exit to Mines 308 | -10/Materials | Build established: Mutant 446 | -10/Materials | Discovered new exit (range 5) 475 | -10/Materials | Entered another Materials area 475 | -9/Materials | Evolved 2 slots: Propulsion x1, Weapon x1 671 | -9/Materials | Discovered new exit (range 9) 683 | -9/Materials | Entered another Materials area 683 | -8/Materials | Evolved 2 slots: Utility x1, Weapon x1 931 | -8/Materials | Build established: Gunner 942 | -8/Materials | Destroyed 11 combat bots 1216 | -8/Materials | Discovered new exit (range 5) 1300 | -8/Materials | Entered Factory 1300 | -7/Factory | Evolved 2 slots: Propulsion x1, Utility x1 1383 | -7/Factory | Build established: Skirmisher 1718 | -7/Factory | Build established: Mutant 1901 | -7/Factory | Lost 3 parts (1p1u1w) 2222 | -7/Factory | Build established: Tank 2927 | -7/Factory | Build established: Scavenger-Mutant 3538 | -7/Factory | Discovered new exit (range 16) 3644 | -7/Factory | Entered another Factory area 3644 | -6/Factory | Evolved 2 slots: Utility x2 4143 | -6/Factory | Spotted B-75 Beast 4484 | -6/Factory | Discovered new exit (range 16) 4522 | -6/Factory | Entered another Factory area 4522 | -5/Factory | Evolved 2 slots: Utility x2 4667 | -5/Factory | System corruption reached 10% 4707 | -5/Factory | Lost 16 parts (2p5n5u4w) 4857 | -5/Factory | Discovered new exit (range 21) 4920 | -5/Factory | Entered another Factory area 4920 | -4/Factory | Evolved 2 slots: Power x1, Weapon x1 5286 | -4/Factory | Fabricated Scythe? 5326 | -4/Factory | Lost 5 parts (4n1w) 5752 | -4/Factory | Lost 10 parts (1p3n1u5w) 6055 | -4/Factory | Build established: Scavenger-Gunner 6231 | -4/Factory | Spotted B-86 Titan 6526 | -4/Factory | Discovered new exit (range 22) 6544 | -4/Factory | Identified exit to Upper Caves 6544 | -4/Factory | Identified exit to Extension 6544 | -4/Factory | Identified exit to Armory 6551 | -4/Factory | Entered Extension 6557 | -4/Extension | Disrupted transfer network 6587 | -4/Extension | Rescued a captive Derelict 6699 | -4/Extension | Rescued a captive Derelict 6708 | -4/Extension | Rescued a captive Derelict 6709 | -4/Extension | Rescued a captive Derelict 6852 | -4/Extension | Build established: Scavenger-Mutant 6922 | -4/Extension | Rescued a captive Derelict 6929 | -4/Extension | Rescued a captive Derelict 6964 | -4/Extension | Spotted B-86 Titan 6970 | -4/Extension | Rescued a captive Derelict 7002 | -4/Extension | Spotted B-86 Titan 7007 | -4/Extension | P-70 Sage assimilated allied OQ-RKV(l) 7028 | -4/Extension | Core integrity fell below 50% 7081 | -4/Extension | Lost 16 parts (2p4n3u7w) 7129 | -4/Extension | Core integrity fell below 20% 7166 | -4/Extension | Lost 10 parts (1p4n2u3w) 7438 | -4/Extension | Destroyed B-86 Titan 7508 | -4/Extension | Build established: Scavenger-Gunner 7720 | -4/Extension | Destroyed B-86 Titan 7748 | -4/Extension | Lost 4 parts (1n2u1w) 8156 | -4/Extension | Rescued a captive Derelict 8157 | -4/Extension | Rescued a captive Derelict 8517 | -4/Extension | Rescued A7 8882 | -4/Extension | Discovered new exit (range 22) 8884 | -4/Extension | Discovered new exit (range 21) 8920 | -4/Extension | Entered Research 8920 | -3/Research | Accompanied by 9 allies 8920 | -3/Research | Evolved 2 slots: Utility x2 9215 | -3/Research | Fabricated Imp. Heavy Treads (x2) 9326 | -3/Research | Local fabrication network quarantined 9516 | -3/Research | Found Unknown Launcher 9821 | -3/Research | Identified exit to Research 9940 | -3/Research | Garrison activated, responded to threat 10015 | -3/Research | Lost 8 parts (1p2u5w) 10065 | -3/Research | Lost 5 parts (2p1u2w) 10247 | -3/Research | Garrison activated, responded to threat 10415 | -3/Research | Lost 3 parts (3w) 10469 | -3/Research | First assault squad dispatched 10845 | -3/Research | Found Prototype Processor 10845 | -3/Research | Identified Exp. Target Analyzer 11200 | -3/Research | Found Adv. Powered Armor 11264 | -3/Research | Entered another Research area 11264 | -2/Research | Evolved 2 slots: Utility x2 11274 | -2/Research | Found Unknown Protection 11274 | -2/Research | Identified Powered Armor 11277 | -2/Research | Found Powered Armor 11347 | -2/Research | Spotted B-90 Cyclops 11708 | -2/Research | Lost 6 parts (1n2u3w) 11919 | -2/Research | Lost 3 parts (3u) 12226 | -2/Research | Fabricated Imp. Heavy Treads (x2) 12250 | -2/Research | Found Prototype Device 12250 | -2/Research | Identified EM Disruption Field 12332 | -2/Research | Discovered new exit (range 16) 12365 | -2/Research | Identified exit to Access 12366 | -2/Research | Entered Access 12366 | -1/Access | Evolved 2 slots: Weapon x2 12510 | -1/Access | Garrison activated, responded to threat 12693 | -1/Access | Build established: Scavenger-Executioner 12866 | -1/Access | First assault squad dispatched 13178 | -1/Access | Found Unknown Launcher 13178 | -1/Access | Identified Fusion Bomb Launcher 13514 | -1/Access | Lost 5 parts (1n1u3w) 13617 | -1/Access | Lost 4 parts (1p1n1u1w) 13705 | -1/Access | Destroyed 8 combat bots 13735 | -1/Access | Core integrity fell below 50% 13758 | -1/Access | Core integrity fell below 20% 13767 | -1/Access | Lost 22 parts (3p3n7u9w) 13787 | -1/Access | Destroyed by S-43 Plague with Heavy Machine Gun Last Messages --------------- 13734_ Penetrated by Slug. 13735_ Slug penetrates Wall. 13735_ Acquired Antigrav System. 13736_ System corrupted: Antigrav System rejected. 13736_ K-01 Serf collects debris. 13736_ Med. Matter Pod destroyed. 13737_ K-01 Serf collects debris. 13738_ Penetrated by Slug. 13738_ Slug penetrates Wall. 13738_ C-30 ARC bursts open, deploying its payload. 13738_ S-43 Plague unfolds itself. 13741_ U-05 Engineer builds a Door. 13741_ Door malfunctions. 13741_ Slug penetrates Wall. 13755_ K-01 Serf cleans the Spectral Interrupter. 13757_ Slug penetrates Wall. 13760_ K-01 Serf cleans the Spectral Interrupter. 13761_ System corrupted: Energy discharge (-34). 13782_ Adv. Core Analyzer destroyed. 13785_ Slammed into S-43 Plague. Map ----- +----------------------------------------------------+ | ?????????#????????????????# # | | ??????????????????????????# ######## | | ??????????????????????????# #??????# | | ??????????????????????????# #??????# | | ??????????????????????????# #??????# | | ??????????????????????????# #??????# | | ??????????????????????????# #??????# | | ??????????????????????????##############??????# | | ??????????????????????????????????????????????# | | ??????????????????????????????????????????????? | | ??????????????????????????????????????????????? | | ???????????????????????????????????????????????? ? | | ?????????????????????????##??????????????????????? | | ????????????????????????? ???????????????????? | | ????????????????????????? ???????????????????# | | ????????????????????????? ???????????????????# | | ?????????????????????????# #??????????????????# | | ?????????????????????????# #??????????????????# | | ?????????????????????????# #??????????????????# | | ????????????############## #??????????????????# | | ????????????# # #??????????????????# | | ????????????# # #################### | | ????????????# # | | ????????????# # | | ????????????# " s # | | ????????????# """" s@ A | | ????????????# """"" s#s | | ????????????# """"" # | | ????????????# """" # | | ????????????# " #######++############# | | ????????????# #???# # | | ????????????# #???# # | | ????????????##############???# / | | ?????????????????????????????# """"""" # | | ?????????????????????????????# """"""" # | | ?????????????????????????????# # | | ?????????????????????????????# # | | ?????????????????????????????# # | | ?????????????????????????????# # | | ?????????????????????????????################## | | ??????????????????????????????????????????????# | | ??????????????????????????????????????????????# | | ??????????????????????????????????????????????# | | ??????????????????????????????????????????????# | | ??????????????????????????????????????????????# | | ??????????????????????????????????????????????# | | ??????????????????????????????????????????????# | | ??????????????????????????????????????????????# | | ??????????????????????????????????????????????# | | ??????????????????????????????????????????????# | +----------------------------------------------------+ Best States ------------- Heat Dissipation 106 Coolant Potential 120 Energy Generation 45 Energy Capacity 590 Matter Stores 300 Matter Capacity 400 Sight Range 22 Robot Scan Range 16 Terrain Scan Density 10 Jamming Range 16 Armor Coverage 1200 Resistance: KI 30 Weapon Cycling 20 Melee Speed Boost 20 Phase Shifting 15 Evasion (%) 55 Targeting Accuracy 16 Melee Accuracy 6 Launcher Accuracy 20 Target Analysis 8 Core Analysis 10 Armor Integrity Analysis 66 Recoil Reduction 10 Matter Filtering 50 Offensive Hacking 30 Defensive Hacking 14 Item Schematics ----------------- Scythe | -7/Factory | Scanalyzed Power Sword | -4/Factory | Scanalyzed Imp. Heavy Treads | -4/Factory | Scanalyzed Robot Schematics ------------------ None Fabricated ------------ Scythe | x2 | -4/Factory Imp. Heavy Treads | x2 | -3/Research Imp. Heavy Treads | x2 | -2/Research Alien Tech Used ----------------- None Achievements -------------- Brute Force Executioner Quantum Hacking Sniper Challenges ------------ None Game ------ Seed CompositePoweredTreads Manual? 0 Play Time 04:05:36 Cumulative 94.5 hours Start 2019.11.08 @ 16:46:07 End 2019.11.09 @ 21:31:21 Sessions 4 Manual Loads 0 Difficulty Rogue Special Mode None Game No. 28 Rogue -16 Adventurer 22 Explorer 1 Win Type - Total 3 Types 3/0/0/0/0/0/0 Lore% 28 Gallery% 56 Achievement% 43 Wizard Run 0 Options --------- ASCII 0 Keyboard 0 Movement Numpad Keybinds 0 Fullscreen 0 Font 20/Terminus Map View 76x50 Tactical HUD 1 Map Filters NONE Filters NONE Steam 1 RUN: 332a13ff-5214-4f43-a0e0-12fd60a23462